bitfinex-derivatives/quotes_SOLF0:USTF0_20250310
["timestamp","ask_amount","ask_price","bid_price","bid_amount"]
[1741576009253,0.05534686,126.99,126.96,7.8766]
[1741576009559,0.05534686,126.99,126.95,11.5]
[1741576011662,0.05534686,126.99,126.97,7.876]
[1741576011853,259.6,127.04,126.96,30.66]
[1741576012053,30.66,127.03,126.97,0.05534686]
[1741576012254,30.66,127.03,126.97,2.34584686]
[1741576012954,38.5328,127.03,126.99,7.8748]
[1741576013160,0.05474647,127.01,126.99,7.8748]
[1741576013361,0.05474647,127.01,127.0,0.05170028]
[1741576013748,0.05474647,127.01,127.0,7.92630028]
[1741576013955,0.05474647,127.01,127.0,0.05170028]
[1741576015454,0.05474647,127.01,127.0,7.92630028]
[1741576015860,0.05474647,127.01,127.0,0.05170028]
[1741576016963,7.92874647,127.01,127.0,0.05170028]
[1741576018959,0.05474647,127.01,127.0,0.05170028]
[1741576020355,7.92874647,127.01,127.0,0.05170028]
[1741576020556,0.05474647,127.01,127.0,0.05170028]
[1741576021467,7.92874647,127.01,127.0,0.05170028]
[1741576022360,7.92874647,127.01,127.0,2.8e-07]
[1741576023365,40.88126866,127.01,126.84,222.68]
[1741576023564,79.33708195,127.02,126.85,8.22594672]
[1741576023565,32.14708195,126.96,126.85,8.22594672]
[1741576023766,30.68,126.95,126.85,6.7785]
[1741576023959,7.8793,126.93,126.87,7.8822]
[1741576024158,7.8793,126.93,126.85,6.7785]
[1741576024366,7.8797,126.92,126.85,6.7785]
[1741576024561,0.05969503,126.9,126.85,6.7785]
[1741576024962,0.05969503,126.9,126.87,7.8823]
[1741576025467,0.05969503,126.9,126.87,7.8826]
[1741576025870,0.05969503,126.9,126.85,37.4585]
[1741576026266,0.05969503,126.9,126.85,57.57948168]
[1741576026660,20.12098168,126.94,126.85,57.57948168]
[1741576026868,30.68,126.95,126.87,20.12098168]
[1741576027062,38.5583,126.95,126.89,7.881]
[1741576027369,30.68,126.95,126.88,30.68]
[1741576027568,50.80098168,126.99,126.91,20.12098168]
[1741576027761,20.12098168,127.01,126.93,20.12098168]
[1741576028076,0.04993397,126.96,126.94,0.05657253]
[1741576028275,30.68,127.02,126.95,30.68]
[1741576028880,0.05279601,127.0,126.97,0.04970684]
[1741576029265,0.05279601,127.0,126.97,7.92560684]
[1741576029466,0.05279601,127.0,126.97,0.04970684]
[1741576031675,7.92779601,127.0,126.97,0.04970684]
[1741576031873,0.05279601,127.0,126.97,0.04970684]
[1741576033768,0.05279601,127.0,126.97,7.92570684]
[1741576033973,0.05279601,127.0,126.97,0.04970684]
[1741576034272,7.92749601,127.0,126.97,0.04970684]
[1741576034470,0.05279601,127.0,126.97,0.04970684]
[1741576034872,0.05279601,127.0,126.97,7.92560684]
[1741576035074,0.05279601,127.0,126.97,0.04970684]
[1741576035275,0.05279601,127.0,126.98,35.1877]
[1741576035971,267.7324,127.04,126.98,35.1877]
[1741576036276,32.14732683,127.06,126.98,35.1877]
[1741576036465,7.8719,127.05,127.01,7.8736]
[1741576037069,0.05481768,127.04,127.02,0.05442552]
[1741576039185,7.8727,127.03,127.02,0.05442552]
[1741576039376,32.20214451,127.04,126.98,4.5077]
[1741576039683,7.8752,127.0,126.98,4.5077]
[1741576039882,30.68,127.02,126.98,4.5077]
[1741576040374,32.14732683,127.0,126.93,2.1954]
[1741576040575,30.68,126.99,126.9,30.68]
[1741576040775,0.06047918,126.96,126.95,0.05344422]
[1741576041079,30.74047918,126.96,126.95,0.05344422]
[1741576041277,30.74047918,126.96,126.95,4.422e-05]
[1741576041472,38.61757918,126.96,126.95,4.422e-05]
[1741576042281,43.39229813,126.96,126.95,4.422e-05]
[1741576043278,43.39146818,126.96,126.95,4.422e-05]
[1741576047381,43.40388068,126.96,126.95,4.422e-05]
[1741576048482,7.8808,126.9,126.89,2.2757]
[1741576048673,30.68,126.93,126.85,4.4234]
[1741576048878,4.78985466,126.92,126.86,2.218]
[1741576049073,30.68,126.93,126.86,2.218]
[1741576049279,4.79013178,126.92,126.86,2.218]
[1741576049489,30.68,126.93,126.86,2.218]
[1741576049785,0.05565518,126.9,126.86,2.218]
[1741576050279,0.05565518,126.9,126.86,10.1009]
[1741576050873,0.05565518,126.9,126.86,2.218]
[1741576051080,0.05565518,126.9,126.87,7.8826]
[1741576051275,0.05565518,126.9,126.86,2.218]
[1741576052185,0.05565518,126.9,126.87,7.8825]
[1741576052387,0.05565518,126.9,126.86,2.218]
[1741576052588,0.05565518,126.9,126.86,10.1009]
[1741576052887,0.05565518,126.9,126.86,2.218]
[1741576053686,0.05565518,126.9,126.88,7.8816]
[1741576054084,259.94,126.94,126.87,30.68]
[1741576054387,259.94,126.94,126.9,7.8804]
[1741576055489,0.05124827,126.93,126.91,7.93781814]
[1741576055685,0.05124827,126.93,126.91,0.05801814]
[1741576056384,7.93024827,126.93,126.91,0.05801814]
[1741576056690,0.05124827,126.93,126.91,0.05801814]
[1741576058291,0.05124827,126.93,126.92,7.8796]
[1741576062897,0.05124827,126.93,126.91,7.93811814]
[1741576064394,0.05124827,126.93,126.91,0.05801814]
[1741576065197,0.05124827,126.93,126.91,7.93821814]
[1741576067099,0.05124827,126.93,126.91,0.05801814]
[1741576068502,0.05124827,126.93,126.91,7.93821814]
[1741576069301,7.93054827,126.93,126.91,0.05801814]
[1741576070505,0.05124827,126.93,126.91,7.93811814]
[1741576071193,0.05124827,126.93,126.91,1.814e-05]
[1741576071194,58.68562309,126.92,126.91,1.814e-05]
[1741576071403,63.4715599,126.92,126.91,1.814e-05]
[1741576072302,55.5919599,126.92,126.85,4.4234]
[1741576072501,7.8819,126.89,126.85,4.4234]
[1741576072707,30.68,126.89,126.85,4.4234]
[1741576072907,7.8821,126.88,126.85,4.4234]
[1741576073108,30.68,126.89,126.85,4.4234]
[1741576073410,0.05684144,126.88,126.85,4.4234]
[1741576073604,20.12602309,126.93,126.85,24.54942309]
[1741576073803,4.78035514,126.92,126.86,38.5632]
[1741576074110,30.68,126.94,126.87,20.12602309]
[1741576074606,38.5587,126.94,126.87,20.12602309]
[1741576074908,0.05107174,126.92,126.89,0.05658348]
[1741576076612,0.05107174,126.92,126.89,7.93758348]
[1741576076801,0.05107174,126.92,126.89,38.61758348]
[1741576077002,0.05107174,126.92,126.89,30.73658348]
[1741576077713,0.05107174,126.92,126.91,7.8802]
[1741576078414,0.05107174,126.92,126.9,2.1956]
[1741576078604,310.76602309,126.97,126.9,2.1956]
[1741576078804,318.64272309,126.97,126.91,2.2936]
[1741576079007,318.64272309,126.97,126.93,7.8788]
[1741576079204,287.96272309,126.97,126.93,7.8788]
[1741576079409,10.68178631,127.0,126.93,20.12602309]
[1741576079713,10.68178631,127.0,126.95,20.12602309]
[1741576079907,0.05519851,126.98,126.96,32.9956]
[1741576080112,0.05519851,126.98,126.97,7.8765]
[1741576080507,10.68178631,127.0,126.99,7.8752]
[1741576081414,30.67690211,127.01,127.0,7.8746]
[1741576081616,27.22373177,127.01,127.0,7.8746]
[1741576082522,27.22373177,127.01,126.99,30.68]
[1741576082710,0.05352966,127.01,126.99,30.68]
[1741576083123,0.05352966,127.01,127.0,7.8746]
[1741576083718,0.05352966,127.01,126.99,30.68]
[1741576084523,0.05352966,127.01,127.0,7.8746]
[1741576085222,40.8688,127.07,127.01,7.8736]
[1741576085424,4.79373659,127.06,127.02,30.66]
[1741576085624,53.8034507,127.08,127.02,30.66]
[1741576086021,53.8034507,127.08,126.99,20.12602309]
[1741576086022,7.8715,127.06,126.99,20.12602309]
[1741576086224,20.12602309,127.08,127.0,30.66]
[1741576086423,0.05751921,127.04,127.01,0.05725664]
[1741576086619,0.05751921,127.04,127.01,20.18327973]
[1741576086825,53.00652309,127.1,127.01,22.42857973]
[1741576087024,53.00652309,127.1,127.01,22.37132309]
[1741576087820,22.34652309,127.1,127.01,22.37132309]
[1741576088016,0.0577942,127.07,127.04,0.05376233]
[1741576088226,0.0577942,127.07,127.05,7.8711]
[1741576088819,0.0577942,127.07,127.04,38.58566233]
[1741576090028,0.0577942,127.07,127.04,30.71376233]
[1741576092136,0.0577942,127.07,127.04,38.58576233]
[1741576092428,0.0577942,127.07,127.04,30.71376233]
[1741576093523,7.9280942,127.07,127.04,30.71376233]
[1741576093724,0.0577942,127.07,127.04,30.71376233]
[1741576093923,0.0577942,127.07,127.04,0.05376233]
[1741576098442,20.12602309,127.02,126.96,30.64]
[1741576099636,0.05569089,127.0,126.98,0.05227332]
[1741576099940,7.8752,126.99,126.98,0.05227332]
[1741576101442,0.05569089,127.0,126.98,0.05227332]
[1741576102538,0.05569089,127.0,126.98,30.69227332]
[1741576103136,0.05569089,127.0,126.98,0.05227332]
[1741576105341,7.8752,126.99,126.98,0.05227332]
[1741576106747,30.69569089,127.0,126.98,0.05227332]
[1741576106932,0.05569089,127.0,126.98,0.05227332]
[1741576109641,7.93049089,127.0,126.98,0.05227332]
[1741576110039,0.05569089,127.0,126.98,0.05227332]
[1741576110241,7.8752,126.99,126.98,0.05227332]
[1741576112247,0.05569089,127.0,126.98,0.05227332]
[1741576113148,0.05569089,127.0,126.98,7.92797332]
[1741576113349,0.05569089,127.0,126.98,0.05227332]
[1741576114646,7.93039089,127.0,126.98,0.05227332]
[1741576115043,0.05569089,127.0,126.98,0.05227332]
[1741576116449,7.8752,126.99,126.98,0.05227332]
[1741576117050,0.05569089,127.0,126.98,0.05227332]
[1741576118348,0.05569089,127.0,126.98,7.92757332]
[1741576118554,0.05569089,127.0,126.98,0.05227332]
[1741576119558,7.93039089,127.0,126.98,0.05227332]
[1741576119756,0.05569089,127.0,126.98,0.05227332]
[1741576121357,7.93059089,127.0,126.98,0.05227332]
[1741576121555,0.05569089,127.0,126.98,0.05227332]
[1741576122244,7.8752,126.99,126.98,0.05227332]
[1741576122844,7.8752,126.99,126.98,7.332e-05]
[1741576123250,12.68105055,126.99,126.98,7.332e-05]
[1741576123652,47.67325055,126.99,126.98,7.332e-05]
[1741576127260,7.8784,126.94,126.89,4.4132]
[1741576127461,20.12602309,126.97,126.89,35.0532]
[1741576127861,7.8781,126.95,126.89,35.0532]
[1741576128158,55.11822309,126.99,126.89,35.0532]
[1741576128355,4.80340897,126.98,126.92,7.879]
[1741576128562,0.05494656,126.95,126.93,0.05291805]
[1741576129066,22.42842309,127.01,126.94,20.12602309]
[1741576129067,2.3024,127.01,126.94,20.12602309]
[1741576129253,30.64,127.02,126.95,32.9558]
[1741576129454,38.5135,127.02,126.97,7.8764]
[1741576130165,7.9337382,127.01,126.98,0.05181462]
[1741576130456,0.0593382,127.01,126.98,0.05181462]
[1741576130965,7.8752,126.99,126.98,0.05181462]
[1741576134364,35.44481482,126.99,126.92,224.8215]
[1741576134564,7.8774,126.96,126.92,40.7007]
[1741576134952,50.76602309,126.99,126.92,40.7007]
[1741576135153,4.80614786,126.98,126.92,40.7007]
[1741576135354,50.76602309,126.99,126.92,40.7007]
[1741576135558,0.05154899,126.96,126.94,0.06048705]
[1741576135953,7.92914899,126.96,126.94,0.06048705]
[1741576136163,0.05154899,126.96,126.94,0.06048705]
[1741576137166,0.05154899,126.96,126.95,7.8777]
[1741576137464,0.05154899,126.96,126.94,0.06048705]
[1741576137667,0.05154899,126.96,126.94,7.93848705]
[1741576137959,0.05154899,126.96,126.94,0.06048705]
[1741576138861,0.05154899,126.96,126.95,7.8777]
[1741576140169,0.05154899,126.96,126.94,38.57838705]
[1741576140357,0.05154899,126.96,126.94,30.70048705]
[1741576140759,0.05154899,126.96,126.95,7.8777]
[1741576142560,20.12602309,127.03,126.94,50.82651014]
[1741576142767,35.46127605,127.02,126.97,7.8761]
[1741576142959,4.82127605,127.01,126.97,7.8761]
[1741576143158,4.82127605,127.0,126.94,50.76602309]
[1741576143360,30.64,127.04,126.98,20.12602309]
[1741576143563,4.82539392,127.03,126.97,30.64]
[1741576143866,7.8751,127.0,126.97,30.64]
[1741576144066,7.8751,127.0,126.99,0.05732664]
[1741576144370,4.82557637,127.0,126.99,0.05732664]
[1741576145069,12.70017637,127.0,126.99,0.05732664]
[1741576145763,4.82557637,127.0,126.99,0.05732664]
[1741576146070,0.04999874,127.02,126.99,0.05732664]
[1741576146273,4.82605155,127.01,126.99,0.05732664]
[1741576146575,0.04999874,127.02,126.99,7.93252664]
[1741576146764,0.04999874,127.02,126.99,0.05732664]
[1741576146966,0.04999874,127.02,126.99,7.93232664]
[1741576147166,4.82889824,127.01,126.99,7.93232664]
[1741576147366,0.04999874,127.02,127.0,7.874]
[1741576148371,0.04999874,127.02,126.99,0.05732664]
[1741576148964,0.04999874,127.02,127.01,7.874]
[1741576149264,4.87960238,127.02,126.99,0.05732664]
[1741576149466,0.04999874,127.02,127.0,7.874]
[1741576150181,0.04999874,127.02,126.99,7.93242664]
[1741576150472,0.04999874,127.02,126.99,20.78528924]
[1741576152070,0.04999874,127.02,127.0,7.8745]
[1741576152883,0.04999874,127.02,127.01,12.8528626]
[1741576154376,0.04999874,127.02,127.01,20.7268626]
[1741576155779,0.04999874,127.02,126.99,0.05732664]
[1741576156282,7.8746,127.0,126.99,0.05732664]
[1741576156578,0.04999874,127.02,126.99,0.05732664]
[1741576156779,7.8744,127.01,126.99,0.05732664]
[1741576156973,0.04999874,127.02,126.99,0.05732664]
[1741576157872,7.92379874,127.02,126.99,0.05732664]
[1741576158077,0.04999874,127.02,126.99,12.91018924]
[1741576158281,0.04999874,127.02,126.99,0.05732664]
[1741576159788,7.92369874,127.02,126.99,0.05732664]
[1741576161585,7.92369874,127.02,126.99,7.93252664]
[1741576162081,7.92369874,127.02,126.99,0.05732664]
[1741576163077,7.8746,127.0,126.99,0.05732664]
[1741576163585,50.75480721,127.02,126.93,282.28600847]
[1741576163779,7.13020878,127.01,126.94,38.498]
[1741576164083,4.82090878,127.0,126.94,38.498]
[1741576164282,7.8761,126.98,126.94,38.498]
[1741576164584,0.05248142,126.97,126.95,0.0584862]
[1741576164772,0.05248142,126.97,126.95,7.9360862]
[1741576165176,0.05248142,126.97,126.95,0.0584862]
[1741576165884,7.92948142,126.97,126.95,0.0584862]
[1741576166085,0.05248142,126.97,126.95,0.0584862]
[1741576166578,7.8771,126.96,126.95,0.0584862]
[1741576168083,0.05248142,126.97,126.95,0.0584862]
[1741576168084,7.92918142,126.97,126.95,0.0584862]
[1741576168282,0.05248142,126.97,126.95,0.0584862]
[1741576168887,0.05248142,126.97,126.95,20.14329467]
[1741576169083,0.05248142,126.97,126.96,7.8771]
[1741576169984,0.05248142,126.97,126.95,20.14329467]
[1741576170285,0.05248142,126.97,126.95,0.0584862]
[1741576171077,7.8771,126.96,126.95,0.0584862]
[1741576171682,7.92908142,126.97,126.95,0.0584862]
[1741576172988,0.05248142,126.97,126.95,0.0584862]
[1741576173592,0.05248142,126.97,126.96,7.8771]
[1741576182096,0.05248142,126.97,126.95,0.0584862]
[1741576182604,7.92928142,126.97,126.95,0.0584862]
[1741576182994,0.05248142,126.97,126.96,7.8771]
[1741576183596,0.05248142,126.97,126.95,22.00628985]
[1741576183796,0.05248142,126.97,126.95,0.0584862]
[1741576187004,7.92908142,126.97,126.95,0.0584862]
[1741576188203,7.8771,126.96,126.95,0.0584862]
[1741576188404,0.05248142,126.97,126.95,0.0584862]
[1741576188607,0.05248142,126.97,126.95,7.9357862]
[1741576192218,0.05248142,126.97,126.96,39.59868634]
[1741576192420,7.8737,127.02,126.98,8.99868634]
[1741576192610,4.82364589,127.01,126.98,8.99868634]
[1741576192812,7.8737,127.02,126.98,8.99868634]
[1741576193009,4.82364445,127.01,126.98,16.87408634]
[1741576193210,7.8737,127.02,126.98,16.87408634]
[1741576193416,12.75178249,127.01,126.99,0.0551219]
[1741576193720,7.92771847,127.01,126.99,0.0551219]
[1741576195209,8.99868634,127.0,126.91,454.0728]
[1741576195407,16.87548634,126.97,126.91,194.2328]
[1741576195610,35.42139392,126.96,126.91,8.99868634]
[1741576195817,30.6,126.96,126.91,8.99868634]
[1741576196215,4.82295894,126.95,126.9,46.7529668]
[1741576196422,0.05400427,126.95,126.92,0.05758738]
[1741576198025,4.82000966,126.94,126.92,0.05758738]
[1741576198213,7.8789,126.93,126.92,0.05758738]
[1741576199828,0.05400427,126.95,126.92,0.05758738]
[1741576200328,7.93210427,126.95,126.92,0.05758738]
[1741576201126,7.8789,126.93,126.92,0.05758738]
[1741576201625,12.70121279,126.93,126.92,0.05758738]
[1741576203131,7.8789,126.93,126.92,0.05758738]
[1741576204328,2.24480427,126.95,126.92,0.05758738]
[1741576205020,10.12290427,126.95,126.92,0.05758738]
[1741576205329,2.24480427,126.95,126.92,0.05758738]
[1741576205528,0.05400427,126.95,126.92,0.05758738]
[1741576205832,0.05400427,126.95,126.92,7.93678738]
[1741576206226,7.93210427,126.95,126.92,0.05758738]
[1741576207132,7.8789,126.93,126.92,0.05758738]
[1741576207519,0.05400427,126.95,126.92,0.05758738]
[1741576207723,7.8786,126.94,126.92,0.05758738]
[1741576207928,0.05400427,126.95,126.92,0.05758738]
[1741576208628,7.93210427,126.95,126.92,0.05758738]
[1741576209129,0.05400427,126.95,126.92,0.05758738]
[1741576210027,0.05400427,126.95,126.93,7.8789]
[1741576210228,0.05400427,126.95,126.92,0.05758738]
[1741576210428,0.05400427,126.95,126.93,7.8789]
[1741576211434,0.05400427,126.95,126.94,7.8783]
[1741576211826,0.05400427,126.95,126.92,0.05758738]
[1741576212437,0.05400427,126.95,126.92,7.93658738]
[1741576212639,0.05400427,126.95,126.92,0.05758738]
[1741576212938,0.05400427,126.95,126.93,7.8785]
[1741576213235,0.05400427,126.95,126.92,30.65758738]
[1741576214136,0.05400427,126.95,126.94,7.8783]
[1741576215337,0.05400427,126.95,126.93,7.8786]
[1741576215738,0.05400427,126.95,126.94,7.8783]
[1741576215934,31.8992197,127.06,126.93,14.07405449]
[1741576216143,42.24350833,127.05,126.97,14.07405449]
[1741576216453,42.24350833,127.05,126.99,7.8749]
[1741576216454,4.82810833,127.04,126.99,7.8749]
[1741576216640,4.82810833,127.03,126.99,7.8749]
[1741576216841,4.82810833,127.02,126.99,7.8749]
[1741576217027,30.6,127.04,126.99,7.92726285]
[1741576217233,0.0554171,127.02,126.99,7.92726285]
[1741576217735,0.0554171,127.02,126.99,0.05236285]
[1741576218042,14.05860634,127.0,126.92,236.65860634]
[1741576218243,4.82756889,126.99,126.92,236.65860634]
[1741576218543,14.05860634,127.0,126.92,236.65860634]
[1741576218844,4.82698093,126.99,126.92,236.65860634]
[1741576219042,0.05041958,126.97,126.95,0.050333]
[1741576220165,7.92721958,126.97,126.95,0.050333]
[1741576220338,0.05041958,126.97,126.95,0.050333]
[1741576222039,7.92701958,126.97,126.95,0.050333]
[1741576222738,0.05041958,126.97,126.95,0.050333]
[1741576222944,0.05041958,126.97,126.92,192.0]
[1741576223642,7.8781,126.95,126.92,192.0]
[1741576223839,0.05041958,126.97,126.9,12.4474]
[1741576224037,7.878,126.95,126.92,0.05180461]
[1741576224234,7.9290628,126.95,126.92,0.05180461]
[1741576224838,7.8789,126.93,126.92,0.05180461]
[1741576226932,34.8152628,126.95,126.87,192.0]
[1741576227137,7.8801,126.92,126.87,192.0]
[1741576227540,14.07400704,126.94,126.87,199.8825]
[1741576227738,4.82419108,126.93,126.87,7.8825]
[1741576227933,14.07400704,126.94,126.87,7.8825]
[1741576228133,0.05223523,126.91,126.89,0.05912215]
[1741576230142,7.8808,126.9,126.89,0.05912215]
[1741576230648,18.89363575,126.9,126.81,273.99400704]
[1741576230845,18.89363575,126.9,126.78,549.66249046]
[1741576230846,14.07400704,126.88,126.79,101.2177732]
[1741576231036,7.8852,126.83,126.79,87.14376616]
[1741576231450,30.6,126.84,126.79,87.14376616]
[1741576231849,0.05051878,126.83,126.79,87.14376616]
[1741576232149,0.05051878,126.83,126.81,7.8858]
[1741576232540,0.05051878,126.83,126.79,87.14376616]
[1741576232847,0.05051878,126.83,126.81,7.8864]
[1741576233050,0.05051878,126.83,126.8,46.75291935]
[1741576233443,0.05051878,126.83,126.82,7.8858]
[1741576234744,216.45204645,126.98,126.82,7.8858]
[1741576234745,44.67400704,126.92,126.86,7.8829]
[1741576234946,4.79722532,126.91,126.85,30.6]
[1741576235143,34.6389,126.93,126.85,30.6]
[1741576235351,4.0389,126.93,126.89,7.8814]
[1741576235549,10.70341293,126.95,126.89,30.6]
[1741576235938,0.05762834,126.93,126.91,0.05921423]
[1741576236442,0.05762834,126.93,126.91,7.93911423]
[1741576236645,0.05762834,126.93,126.92,30.6]
[1741576237137,0.05762834,126.93,126.92,38.4796]
[1741576237743,0.05762834,126.93,126.92,52.55360704]
[1741576238653,14.07400704,127.0,126.93,7.8785]
[1741576238956,7.8759,126.98,126.92,46.66810704]
[1741576239251,7.8759,126.98,126.92,54.54750704]
[1741576239450,7.8759,126.98,126.92,46.66810704]
[1741576239754,7.8759,126.98,126.93,7.8789]
[1741576239949,0.05138356,126.96,126.94,0.05361062]
[1741576240149,0.05138356,126.96,126.95,30.6]
[1741576241854,0.05138356,126.96,126.95,38.4777]
[1741576242354,6.084,127.02,126.98,7.8752]
[1741576242548,6.084,127.02,126.99,30.58]
[1741576243155,13.9578,127.02,126.99,30.58]
[1741576243354,14.00975141,127.02,126.99,30.6317044]
[1741576243749,2.14815141,127.02,126.99,30.6317044]
[1741576244254,10.02175141,127.02,126.99,30.6317044]
[1741576244457,2.14815141,127.02,126.99,30.6317044]
[1741576244656,16.22215845,127.02,126.99,30.6317044]
[1741576244848,7.8746,127.0,126.99,0.0517044]
[1741576245547,7.8764,126.98,126.94,30.58]
[1741576246759,0.06039653,126.97,126.95,0.05552785]
[1741576246955,44.65400704,127.04,126.96,14.07400704]
[1741576247259,4.80346565,127.03,126.96,14.07400704]
[1741576247450,44.65400704,127.04,126.97,30.58]
[1741576247650,4.80253767,127.03,126.97,30.58]
[1741576247856,7.8738,127.02,126.97,38.4563]
[1741576248056,44.65400704,127.04,126.97,30.58]
[1741576248356,0.05660521,127.01,126.98,0.05189033]
[1741576248761,7.8747,127.0,126.98,0.05189033]
[1741576248964,0.05660521,127.01,126.98,0.05189033]
[1741576249361,7.93080521,127.01,126.98,0.05189033]
[1741576249659,0.05660521,127.01,127.0,21.94860704]
[1741576249958,0.05660521,127.01,126.98,16.10219737]
[1741576250263,0.05660521,127.01,126.98,23.97759737]
[1741576250666,0.05660521,127.01,126.98,16.10219737]
[1741576250963,0.05660521,127.01,126.98,0.05189033]
[1741576251158,7.93110521,127.01,126.98,0.05189033]
[1741576251363,0.05660521,127.01,126.98,0.05189033]
[1741576252059,7.93100521,127.01,126.98,0.05189033]
[1741576252666,0.05660521,127.01,126.98,0.05189033]
[1741576253975,7.93090521,127.01,126.98,0.05189033]
[1741576254160,0.05660521,127.01,126.98,0.05189033]
[1741576254467,7.93070521,127.01,126.98,0.05189033]
[1741576254861,0.05660521,127.01,126.98,0.05189033]
[1741576255165,7.8752,127.0,126.98,0.05189033]
[1741576255865,0.05660521,127.01,126.98,0.05189033]
[1741576256862,7.93090521,127.01,126.98,0.05189033]
[1741576257063,0.05660521,127.01,126.98,0.05189033]
[1741576258160,7.87,127.08,127.03,7.8724]
[1741576258364,57.09769606,127.11,127.03,7.8724]
[1741576258565,4.80665243,127.1,127.03,7.8724]
[1741576258761,7.87,127.08,127.03,7.8724]
[1741576258959,57.09769606,127.11,127.03,7.8724]
[1741576259164,0.05246415,127.07,127.04,0.05727398]
[1741576259565,7.92316415,127.07,127.04,0.05727398]
[1741576259763,0.05246415,127.07,127.04,0.05727398]
[1741576260463,7.92316415,127.07,127.04,0.05727398]
[1741576260967,0.05246415,127.07,127.04,0.05727398]
[1741576261561,7.8715,127.05,127.04,0.05727398]
[1741576264575,7.8741,127.01,126.99,30.56]
[1741576264874,30.56,127.05,126.99,30.56]
[1741576265774,0.0524946,127.03,127.01,0.04984773]
[1741576266366,7.8734,127.02,127.01,0.04984773]
[1741576268070,7.8759,126.98,126.96,30.54]
[1741576268474,55.05309606,127.02,126.93,230.4188]
[1741576268776,2.0166,127.01,126.93,38.4188]
[1741576269169,22.50669606,127.0,126.92,4.118]
[1741576269369,22.50669606,127.0,126.9,2.0258]
[1741576269370,0.05491754,126.98,126.96,0.05277426]
[1741576269570,7.8765,126.97,126.96,0.05277426]
[1741576270167,0.05491754,126.98,126.9,30.54]
[1741576270476,22.50669606,126.96,126.86,65.24471231]
[1741576270672,7.8801,126.92,126.87,12.0003]
[1741576270872,7.8801,126.92,126.87,4.118]
[1741576271373,0.05427287,126.91,126.88,0.05504453]
[1741576271969,0.05427287,126.91,126.89,30.56]
[1741576273370,0.05427287,126.91,126.9,7.8808]
[1741576275782,0.05427287,126.91,126.89,38.4412]
[1741576275982,0.05427287,126.91,126.89,30.56]
[1741576276280,0.05427287,126.91,126.88,0.05504453]
[1741576277978,7.8814,126.9,126.88,0.05504453]
[1741576278383,0.05427287,126.91,126.88,0.05504453]
[1741576279086,7.8814,126.89,126.88,0.05504453]
[1741576279289,22.56096893,126.91,126.82,34.7023]
[1741576279489,22.50669606,126.91,126.81,63.23891231]
[1741576279785,4.78925124,126.9,126.81,63.23891231]
[1741576279992,30.56,126.89,126.81,63.23891231]
[1741576280182,30.56,126.89,126.85,7.8834]
[1741576280382,0.05385621,126.86,126.85,7.8834]
[1741576281488,2.0718,126.94,126.85,3.94]
[1741576281786,2.0718,126.94,126.86,22.50669606]
[1741576282083,2.0718,126.94,126.89,7.881]
[1741576282486,0.0578351,126.93,126.9,0.0526561]
[1741576282684,0.0578351,126.93,126.9,7.9334561]
[1741576283284,0.0578351,126.93,126.9,0.0526561]
[1741576283993,0.0578351,126.93,126.9,7.9333561]
[1741576284183,0.0578351,126.93,126.9,0.0526561]
[1741576284778,7.9372351,126.93,126.9,0.0526561]
[1741576284974,0.0578351,126.93,126.9,0.0526561]
[1741576287284,0.0578351,126.93,126.9,7.9334561]
[1741576287484,0.0578351,126.93,126.9,0.0526561]
[1741576288789,0.0578351,126.93,126.9,7.9333561]
[1741576289178,0.0578351,126.93,126.9,0.0526561]
[1741576289687,7.9371351,126.93,126.9,0.0526561]
[1741576290183,0.0578351,126.93,126.9,0.0526561]
[1741576291382,7.8796,126.92,126.9,0.0526561]
[1741576291881,14.14188833,126.93,126.9,0.0526561]
[1741576292089,14.14188833,126.93,126.85,30.56]
[1741576292286,14.08405323,126.91,126.85,30.56]
[1741576292482,30.56,126.9,126.85,30.56]
[1741576292682,38.4399,126.92,126.85,30.56]
[1741576292890,30.56,126.92,126.86,7.883]
[1741576293186,30.56,126.92,126.85,30.56]
[1741576293487,0.04974283,126.9,126.89,7.8814]
[1741576293687,7.8794,126.93,126.89,7.8814]
[1741576293889,0.05653553,126.91,126.88,0.02021293]
[1741576294289,0.05653553,126.91,126.9,7.8808]
[1741576295690,0.05653553,126.91,126.9,38.4408]
[1741576296789,34.4731,127.0,126.9,57.02327143]
[1741576296994,34.4731,127.0,126.9,53.08327143]
[1741576297397,7.8763,126.98,126.9,53.08327143]
[1741576297696,0.05607156,126.95,126.94,7.8783]
[1741576301492,0.05607156,126.95,126.93,30.61789766]
[1741576301697,0.05607156,126.95,126.93,0.05789766]